[Event "Titled Tuesday Blitz January 03 Early 2023"]
[White "Jones, Gawain C B"]
[Black "Krysa, Leandro"]
[WhiteFideId "409561"]
[BlackFideId "116807"]
[WhiteElo "2618"]
[BlackElo "2541"]
[Result "1-0"]
[Round "09"]
[TimeControl "180+2"]
[Date "2023.01.03"]
[WhiteClock "0:00:14"]
[BlackClock "0:00:09"]

1. Nf3 {[%clk 0:02:52]}  d5 {[%clk 0:02:58]} 2. g3 {[%clk 0:02:49]}  c6 {[%clk 0:02:57]} 3. Bg2 {[%clk 0:02:49]}  Bg4 {[%clk 0:02:57]} 4. O-O {[%clk 0:02:50]}  Nd7 {[%clk 0:02:56]} 5. h3 {[%clk 0:02:50]}  Bh5 {[%clk 0:02:56]} 6. c4 {[%clk 0:02:50]}  e6 {[%clk 0:02:54]} 7. d3 {[%clk 0:02:49]}  Ngf6 {[%clk 0:02:47]} 8. Qb3 {[%clk 0:02:49]}  Nc5 {[%clk 0:02:43]} 9. Qc2 {[%clk 0:02:49]}  a5 {[%clk 0:02:39]} 10. Be3 {[%clk 0:02:46]}  Rc8 {[%clk 0:02:33]} 11. Ne5 {[%clk 0:02:41]}  Bd6 {[%clk 0:02:19]} 12. f4 {[%clk 0:02:22]}  O-O {[%clk 0:02:10]} 13. Nc3 {[%clk 0:02:07]}  Nfd7 {[%clk 0:02:01]} 14. d4 {[%clk 0:02:05]}  Bxe5 {[%clk 0:01:47]} 15. fxe5 {[%clk 0:01:55]}  Bg6 {[%clk 0:01:46]} 16. Qd2 {[%clk 0:01:46]}  Ne4 {[%clk 0:01:46]} 17. Nxe4 {[%clk 0:01:46]}  dxe4 {[%clk 0:01:44]} 18. Bg5 {[%clk 0:01:22]}  f6 {[%clk 0:01:30]} 19. exf6 {[%clk 0:01:22]}  Nxf6 {[%clk 0:01:30]} 20. Qe3 {[%clk 0:01:19]}  Qc7 {[%clk 0:01:10]} 21. Bf4 {[%clk 0:01:19]}  Qb6 {[%clk 0:01:04]} 22. Bd6 {[%clk 0:01:13]}  Rfd8 {[%clk 0:01:02]} 23. c5 {[%clk 0:01:12]}  Nd5 {[%clk 0:00:42]} 24. Qf2 {[%clk 0:00:51]}  Qxb2 {[%clk 0:00:32]} 25. Rab1 {[%clk 0:00:51]}  Qc3 {[%clk 0:00:11]} 26. Rxb7 {[%clk 0:00:35]}  e3 {[%clk 0:00:11]} 27. Qf3 {[%clk 0:00:24]}  Qxd4 {[%clk 0:00:11]} 28. g4 {[%clk 0:00:16]}  Qf6 {[%clk 0:00:09]} 29. Qg3 {[%clk 0:00:15]}  Qd4 {[%clk 0:00:09]} 30. Be5 {[%clk 0:00:14]} 1-0


[Site "https://www.chess.com"]

[Event "Titled Tuesday Blitz January 03 Early 2023"]
[White "Tang, Andrew"]
[Black "Atakhan, Abtin"]
[WhiteFideId "2059630"]
[BlackFideId "22502203"]
[WhiteElo "2523"]
[BlackElo "2422"]
[Result "1-0"]
[Round "09"]
[TimeControl "180+2"]
[Date "2023.01.03"]
[WhiteClock "0:01:05"]
[BlackClock "0:00:01"]

1. d4 {[%clk 0:03:00]}  Nf6 {[%clk 0:02:56]} 2. c4 {[%clk 0:03:01]}  Nc6 {[%clk 0:02:46]} 3. Nf3 {[%clk 0:03:00]}  e6 {[%clk 0:02:45]} 4. Nc3 {[%clk 0:03:01]}  Bb4 {[%clk 0:02:44]} 5. Qc2 {[%clk 0:03:01]}  d5 {[%clk 0:02:42]} 6. cxd5 {[%clk 0:02:53]}  exd5 {[%clk 0:02:39]} 7. Bf4 {[%clk 0:02:50]}  O-O {[%clk 0:02:36]} 8. e3 {[%clk 0:02:49]}  Ne7 {[%clk 0:02:15]} 9. Bd3 {[%clk 0:02:45]}  c6 {[%clk 0:02:08]} 10. O-O {[%clk 0:02:32]}  Bd6 {[%clk 0:01:31]} 11. Bxd6 {[%clk 0:02:24]}  Qxd6 {[%clk 0:01:32]} 12. Ne5 {[%clk 0:02:25]}  g6 {[%clk 0:01:30]} 13. f3 {[%clk 0:02:12]}  Bf5 {[%clk 0:01:26]} 14. Rad1 {[%clk 0:01:59]}  Bxd3 {[%clk 0:01:21]} 15. Qxd3 {[%clk 0:01:53]}  Rad8 {[%clk 0:01:17]} 16. Qe2 {[%clk 0:01:38]}  c5 {[%clk 0:01:03]} 17. Nb5 {[%clk 0:01:35]}  Qb8 {[%clk 0:01:03]} 18. Nd3 {[%clk 0:01:33]}  a6 {[%clk 0:01:02]} 19. Nc3 {[%clk 0:01:32]}  cxd4 {[%clk 0:01:00]} 20. exd4 {[%clk 0:01:28]}  Nf5 {[%clk 0:00:56]} 21. Ne5 {[%clk 0:01:22]}  Rfe8 {[%clk 0:00:54]} 22. Rfe1 {[%clk 0:01:22]}  Qa7 {[%clk 0:00:31]} 23. Qf2 {[%clk 0:01:19]}  Re6 {[%clk 0:00:30]} 24. g4 {[%clk 0:01:17]}  Ne7 {[%clk 0:00:23]} 25. f4 {[%clk 0:01:11]}  Nc6 {[%clk 0:00:21]} 26. f5 {[%clk 0:01:11]}  Red6 {[%clk 0:00:20]} 27. g5 {[%clk 0:01:08]}  Nxe5 {[%clk 0:00:10]} 28. dxe5 {[%clk 0:01:07]}  Qxf2+ {[%clk 0:00:10]} 29. Kxf2 {[%clk 0:01:08]}  Ng4+ {[%clk 0:00:06]} 30. Kg3 {[%clk 0:01:09]}  Rb6 {[%clk 0:00:03]} 31. Nxd5 {[%clk 0:01:06]}  Rb5 {[%clk 0:00:01]} 32. Nf6+ {[%clk 0:01:05]} 1-0


[Site "https://www.chess.com"]

[Event "Titled Tuesday Blitz January 03 Early 2023"]
[White "Grigoriants, Sergey"]
[Black "Vlassov, Nikolai"]
[WhiteFideId "4130804"]
[BlackFideId "4103360"]
[WhiteElo "2562"]
[BlackElo "2283"]
[Result "1-0"]
[Round "09"]
[TimeControl "180+2"]
[Date "2023.01.03"]
[WhiteClock "0:01:14"]
[BlackClock "0:01:40"]

1. d4 {[%clk 0:02:57]}  Nf6 {[%clk 0:02:59]} 2. Nf3 {[%clk 0:02:55]}  e6 {[%clk 0:02:59]} 3. g3 {[%clk 0:02:55]}  b5 {[%clk 0:02:59]} 4. Bg2 {[%clk 0:02:54]}  Bb7 {[%clk 0:02:59]} 5. O-O {[%clk 0:02:54]}  c5 {[%clk 0:02:59]} 6. a4 {[%clk 0:02:31]}  b4 {[%clk 0:02:59]} 7. dxc5 {[%clk 0:02:26]}  Bxc5 {[%clk 0:02:58]} 8. Nbd2 {[%clk 0:02:24]}  O-O {[%clk 0:02:57]} 9. Nb3 {[%clk 0:02:19]}  Be7 {[%clk 0:02:57]} 10. Bf4 {[%clk 0:02:15]}  Nd5 {[%clk 0:02:48]} 11. Qd2 {[%clk 0:01:47]}  Nxf4 {[%clk 0:02:37]} 12. Qxf4 {[%clk 0:01:47]}  Na6 {[%clk 0:02:35]} 13. Rad1 {[%clk 0:01:44]}  Rc8 {[%clk 0:02:33]} 14. Ne5 {[%clk 0:01:35]}  Bxg2 {[%clk 0:02:15]} 15. Rxd7 {[%clk 0:01:34]}  Bxf1 {[%clk 0:02:02]} 16. Rxd8 {[%clk 0:01:34]}  Bxd8 {[%clk 0:01:58]} 17. Kxf1 {[%clk 0:01:34]}  Rxc2 {[%clk 0:01:57]} 18. Nd4 {[%clk 0:01:28]}  Rxb2 {[%clk 0:01:54]} 19. Ndc6 {[%clk 0:01:24]}  Bc7 {[%clk 0:01:48]} 20. Ne7+ {[%clk 0:01:20]}  Kh8 {[%clk 0:01:47]} 21. Qxf7 {[%clk 0:01:15]}  Rxf7 {[%clk 0:01:40]} 22. Nxf7# {[%clk 0:01:14]} 1-0


[Site "https://www.chess.com"]

[Event "Titled Tuesday Blitz January 03 Early 2023"]
[White "Sanal, Vahap"]
[Black "Tologon tegin, Semetei"]
[WhiteFideId "6300545"]
[BlackFideId "13800574"]
[WhiteElo "2600"]
[BlackElo "2372"]
[Result "1-0"]
[Round "09"]
[TimeControl "180+2"]
[Date "2023.01.03"]
[WhiteClock "0:00:03"]
[BlackClock "0:00:02"]

1. e4 {[%clk 0:02:46]}  e5 {[%clk 0:02:59]} 2. Nf3 {[%clk 0:02:45]}  Nc6 {[%clk 0:02:59]} 3. Bb5 {[%clk 0:02:42]}  a6 {[%clk 0:02:59]} 4. Ba4 {[%clk 0:02:42]}  Nf6 {[%clk 0:02:58]} 5. O-O {[%clk 0:02:42]}  Be7 {[%clk 0:02:54]} 6. Bxc6 {[%clk 0:02:39]}  dxc6 {[%clk 0:02:53]} 7. d3 {[%clk 0:02:39]}  Nd7 {[%clk 0:02:46]} 8. b3 {[%clk 0:02:39]}  f6 {[%clk 0:02:46]} 9. Bb2 {[%clk 0:02:39]}  c5 {[%clk 0:02:46]} 10. Nbd2 {[%clk 0:02:38]}  Nf8 {[%clk 0:02:46]} 11. Nh4 {[%clk 0:02:35]}  Be6 {[%clk 0:02:40]} 12. Nf5 {[%clk 0:02:35]}  Bxf5 {[%clk 0:02:37]} 13. exf5 {[%clk 0:02:35]}  Qd7 {[%clk 0:02:37]} 14. Qf3 {[%clk 0:02:26]}  O-O-O {[%clk 0:02:37]} 15. Ne4 {[%clk 0:02:27]}  Qc6 {[%clk 0:02:32]} 16. Rae1 {[%clk 0:02:20]}  g6 {[%clk 0:02:32]} 17. Re2 {[%clk 0:02:16]}  Kb8 {[%clk 0:02:26]} 18. Rfe1 {[%clk 0:02:16]}  gxf5 {[%clk 0:02:23]} 19. Qxf5 {[%clk 0:02:15]}  Rg8 {[%clk 0:02:23]} 20. Qf3 {[%clk 0:02:04]}  Ng6 {[%clk 0:02:22]} 21. g3 {[%clk 0:01:25]}  Nf4 {[%clk 0:02:18]} 22. Re3 {[%clk 0:01:24]}  Rg6 {[%clk 0:02:17]} 23. Nd2 {[%clk 0:01:22]}  Qd7 {[%clk 0:02:08]} 24. Kh1 {[%clk 0:01:18]}  Nh3 {[%clk 0:01:57]} 25. Ne4 {[%clk 0:01:09]}  Rh6 {[%clk 0:01:46]} 26. Nd2 {[%clk 0:01:00]}  Rg8 {[%clk 0:01:39]} 27. R3e2 {[%clk 0:00:47]}  Rg5 {[%clk 0:01:38]} 28. Ne4 {[%clk 0:00:43]}  Rgh5 {[%clk 0:01:36]} 29. Qg2 {[%clk 0:00:32]}  Qc6 {[%clk 0:01:06]} 30. Bc1 {[%clk 0:00:30]}  Rg6 {[%clk 0:00:28]} 31. Qf3 {[%clk 0:00:25]}  Nf4 {[%clk 0:00:15]} 32. Bxf4 {[%clk 0:00:18]}  Rf5 {[%clk 0:00:12]} 33. Nd2 {[%clk 0:00:18]}  Qd7 {[%clk 0:00:07]} 34. Qe4 {[%clk 0:00:16]}  Bd6 {[%clk 0:00:04]} 35. Be3 {[%clk 0:00:16]}  Rh5 {[%clk 0:00:04]} 36. Qg2 {[%clk 0:00:14]}  f5 {[%clk 0:00:04]} 37. Nc4 {[%clk 0:00:13]}  f4 {[%clk 0:00:04]} 38. Bd2 {[%clk 0:00:11]}  Qf5 {[%clk 0:00:04]} 39. Nxe5 {[%clk 0:00:08]}  Bxe5 {[%clk 0:00:03]} 40. Rxe5 {[%clk 0:00:08]}  f3 {[%clk 0:00:03]} 41. Qg1 {[%clk 0:00:03]}  Qxe5 {[%clk 0:00:03]} 42. Rxe5 {[%clk 0:00:03]}  Rxe5 {[%clk 0:00:04]} 43. Be3 {[%clk 0:00:04]}  Rge6 {[%clk 0:00:04]} 44. Qd1 {[%clk 0:00:04]}  Rf5 {[%clk 0:00:04]} 45. Kg1 {[%clk 0:00:04]}  h5 {[%clk 0:00:03]} 46. h4 {[%clk 0:00:03]}  b6 {[%clk 0:00:02]} 47. Kh2 {[%clk 0:00:04]}  Kb7 {[%clk 0:00:02]} 48. a4 {[%clk 0:00:04]}  a5 {[%clk 0:00:02]} 49. Qd2 {[%clk 0:00:05]}  Kc6 {[%clk 0:00:02]} 50. d4 {[%clk 0:00:03]}  cxd4 {[%clk 0:00:02]} 51. Qxd4 {[%clk 0:00:03]} 1-0


[Site "https://www.chess.com"]

[Event "Titled Tuesday Blitz January 03 Early 2023"]
[White "Costachi, Mihnea"]
[Black "Lazavik, Denis"]
[WhiteFideId "1217518"]
[BlackFideId "13515110"]
[WhiteElo "2476"]
[BlackElo "2544"]
[Result "0-1"]
[Round "09"]
[TimeControl "180+2"]
[Date "2023.01.03"]
[WhiteClock "0:00:02"]
[BlackClock "0:00:07"]

1. Nc3 {[%clk 0:03:00]}  d5 {[%clk 0:02:57]} 2. d4 {[%clk 0:03:01]}  Nf6 {[%clk 0:02:57]} 3. Bf4 {[%clk 0:03:01]}  c5 {[%clk 0:02:57]} 4. e3 {[%clk 0:03:01]}  cxd4 {[%clk 0:02:56]} 5. exd4 {[%clk 0:03:01]}  Bg4 {[%clk 0:02:57]} 6. Be2 {[%clk 0:03:01]}  Bxe2 {[%clk 0:02:56]} 7. Qxe2 {[%clk 0:03:01]}  Nc6 {[%clk 0:02:52]} 8. Nf3 {[%clk 0:03:00]}  e6 {[%clk 0:02:52]} 9. O-O {[%clk 0:02:59]}  Be7 {[%clk 0:02:51]} 10. Qb5 {[%clk 0:02:57]}  Qc8 {[%clk 0:02:43]} 11. Ne2 {[%clk 0:02:42]}  a6 {[%clk 0:02:40]} 12. Qb6 {[%clk 0:02:34]}  Nd7 {[%clk 0:02:33]} 13. Qb3 {[%clk 0:02:33]}  O-O {[%clk 0:02:31]} 14. Qe3 {[%clk 0:02:27]}  Nb4 {[%clk 0:02:26]} 15. Rfc1 {[%clk 0:02:22]}  Nb6 {[%clk 0:01:48]} 16. Nd2 {[%clk 0:02:03]}  Qd7 {[%clk 0:01:30]} 17. c3 {[%clk 0:02:01]}  Nc6 {[%clk 0:01:29]} 18. Re1 {[%clk 0:01:57]}  Rac8 {[%clk 0:01:27]} 19. Nc1 {[%clk 0:01:57]}  Nc4 {[%clk 0:01:19]} 20. Nxc4 {[%clk 0:01:57]}  dxc4 {[%clk 0:01:20]} 21. Qg3 {[%clk 0:01:56]}  Kh8 {[%clk 0:01:19]} 22. Ne2 {[%clk 0:01:50]}  b5 {[%clk 0:01:19]} 23. a3 {[%clk 0:01:50]}  a5 {[%clk 0:01:18]} 24. Bg5 {[%clk 0:01:49]}  Bd6 {[%clk 0:01:14]} 25. Bf4 {[%clk 0:01:48]}  Be7 {[%clk 0:01:14]} 26. Bg5 {[%clk 0:01:48]}  f6 {[%clk 0:01:10]} 27. Bc1 {[%clk 0:01:40]}  Bd6 {[%clk 0:01:07]} 28. Qh3 {[%clk 0:01:40]}  Qf7 {[%clk 0:01:01]} 29. Bf4 {[%clk 0:01:28]}  e5 {[%clk 0:00:52]} 30. dxe5 {[%clk 0:01:29]}  fxe5 {[%clk 0:00:32]} 31. Be3 {[%clk 0:01:26]}  e4 {[%clk 0:00:32]} 32. Rad1 {[%clk 0:01:22]}  Rcd8 {[%clk 0:00:30]} 33. Nd4 {[%clk 0:01:16]}  Ne5 {[%clk 0:00:25]} 34. Nxb5 {[%clk 0:01:13]}  Nd3 {[%clk 0:00:25]} 35. Nxd6 {[%clk 0:01:13]}  Rxd6 {[%clk 0:00:24]} 36. Qh4 {[%clk 0:00:56]}  Rg6 {[%clk 0:00:17]} 37. Qxe4 {[%clk 0:00:47]}  Re6 {[%clk 0:00:14]} 38. Qd4 {[%clk 0:00:28]}  Nxe1 {[%clk 0:00:11]} 39. Rxe1 {[%clk 0:00:29]}  Re7 {[%clk 0:00:08]} 40. Rd1 {[%clk 0:00:23]}  Rfe8 {[%clk 0:00:06]} 41. h3 {[%clk 0:00:20]}  Kg8 {[%clk 0:00:06]} 42. Qc5 {[%clk 0:00:19]}  Re5 {[%clk 0:00:06]} 43. Qd6 {[%clk 0:00:17]}  h6 {[%clk 0:00:07]} 44. Qd4 {[%clk 0:00:17]}  Kh7 {[%clk 0:00:06]} 45. Qd2 {[%clk 0:00:16]}  Re4 {[%clk 0:00:07]} 46. Qc2 {[%clk 0:00:16]}  Qg6 {[%clk 0:00:07]} 47. Qd2 {[%clk 0:00:16]}  R8e6 {[%clk 0:00:06]} 48. Qd5 {[%clk 0:00:16]}  R6e5 {[%clk 0:00:05]} 49. Qd8 {[%clk 0:00:15]}  Re8 {[%clk 0:00:05]} 50. Qc7 {[%clk 0:00:14]}  R8e7 {[%clk 0:00:05]} 51. Qb8 {[%clk 0:00:14]}  Re8 {[%clk 0:00:04]} 52. Qb7 {[%clk 0:00:14]}  R4e7 {[%clk 0:00:04]} 53. Qb5 {[%clk 0:00:12]}  Re4 {[%clk 0:00:04]} 54. Qxa5 {[%clk 0:00:11]}  R4e5 {[%clk 0:00:03]} 55. Qc7 {[%clk 0:00:10]}  Re4 {[%clk 0:00:02]} 56. Rd7 {[%clk 0:00:09]}  Rg8 {[%clk 0:00:02]} 57. Rd6 {[%clk 0:00:08]}  Qf5 {[%clk 0:00:02]} 58. Qc6 {[%clk 0:00:06]}  Rge8 {[%clk 0:00:02]} 59. Rd5 {[%clk 0:00:06]}  R4e5 {[%clk 0:00:02]} 60. Rxe5 {[%clk 0:00:07]}  Rxe5 {[%clk 0:00:03]} 61. Qxc4 {[%clk 0:00:07]}  Qb1+ {[%clk 0:00:03]} 62. Kh2 {[%clk 0:00:07]}  Qxb2 {[%clk 0:00:04]} 63. Bd4 {[%clk 0:00:08]}  Re7 {[%clk 0:00:04]} 64. Qd3+ {[%clk 0:00:08]}  Kg8 {[%clk 0:00:04]} 65. Qc4+ {[%clk 0:00:08]}  Kh7 {[%clk 0:00:04]} 66. Qc5 {[%clk 0:00:09]}  Qb8+ {[%clk 0:00:04]} 67. g3 {[%clk 0:00:09]}  Qe8 {[%clk 0:00:04]} 68. Qf5+ {[%clk 0:00:10]}  Kg8 {[%clk 0:00:05]} 69. Qd5+ {[%clk 0:00:10]}  Rf7 {[%clk 0:00:05]} 70. Kg2 {[%clk 0:00:08]}  Kh7 {[%clk 0:00:06]} 71. a4 {[%clk 0:00:07]}  Rd7 {[%clk 0:00:06]} 72. Qf5+ {[%clk 0:00:06]}  Kg8 {[%clk 0:00:07]} 73. a5 {[%clk 0:00:06]}  Qa8+ {[%clk 0:00:07]} 74. Kh2 {[%clk 0:00:06]}  Rf7 {[%clk 0:00:08]} 75. Qb5 {[%clk 0:00:04]}  Re7 {[%clk 0:00:06]} 76. Qc4+ {[%clk 0:00:02]}  Kh7 {[%clk 0:00:06]} 77. Qd3+ {[%clk 0:00:03]}  Kg8 {[%clk 0:00:07]} 78. Qc4+ {[%clk 0:00:01]}  Kh8 {[%clk 0:00:07]} 79. Qb4 {[%clk 0:00:02]}  Re1 {[%clk 0:00:07]} 0-1


[Site "https://www.chess.com"]

[Event "Titled Tuesday Blitz January 03 Early 2023"]
[White "Yuan, Qingyu"]
[Black "Keymer, Vincent"]
[WhiteFideId "8609772"]
[BlackFideId "12940690"]
[WhiteElo "2373"]
[BlackElo "2700"]
[Result "0-1"]
[Round "09"]
[TimeControl "180+2"]
[Date "2023.01.03"]
[WhiteClock "0:00:14"]
[BlackClock "0:01:15"]

1. e4 {[%clk 0:03:00]}  c6 {[%clk 0:03:00]} 2. d4 {[%clk 0:03:00]}  d5 {[%clk 0:03:01]} 3. exd5 {[%clk 0:03:01]}  cxd5 {[%clk 0:03:02]} 4. Bd3 {[%clk 0:03:01]}  Nf6 {[%clk 0:03:02]} 5. c3 {[%clk 0:03:00]}  Bg4 {[%clk 0:03:02]} 6. Qb3 {[%clk 0:02:50]}  Qc7 {[%clk 0:03:01]} 7. Ne2 {[%clk 0:02:47]}  Bxe2 {[%clk 0:03:00]} 8. Bxe2 {[%clk 0:02:45]}  e6 {[%clk 0:02:58]} 9. Nd2 {[%clk 0:02:40]}  Bd6 {[%clk 0:02:57]} 10. Nf3 {[%clk 0:02:40]}  Nc6 {[%clk 0:02:56]} 11. O-O {[%clk 0:02:38]}  Ne4 {[%clk 0:02:56]} 12. Bd3 {[%clk 0:02:25]}  O-O {[%clk 0:02:53]} 13. Re1 {[%clk 0:02:19]}  f5 {[%clk 0:02:53]} 14. Be3 {[%clk 0:02:05]}  h6 {[%clk 0:02:49]} 15. Rac1 {[%clk 0:01:58]}  Rac8 {[%clk 0:02:45]} 16. Qa4 {[%clk 0:01:41]}  Qf7 {[%clk 0:02:25]} 17. c4 {[%clk 0:01:27]}  f4 {[%clk 0:02:13]} 18. Bd2 {[%clk 0:01:20]}  Nxd2 {[%clk 0:02:10]} 19. Nxd2 {[%clk 0:01:20]}  f3 {[%clk 0:01:27]} 20. Nxf3 {[%clk 0:01:09]}  Nxd4 {[%clk 0:01:26]} 21. Be2 {[%clk 0:00:29]}  Bxh2+ {[%clk 0:01:16]} 22. Kxh2 {[%clk 0:00:23]}  Nxe2 {[%clk 0:01:16]} 23. Rc2 {[%clk 0:00:14]}  Qh5+ {[%clk 0:01:15]} 0-1


[Site "https://www.chess.com"]

[Event "Titled Tuesday Blitz January 03 Early 2023"]
[White "Borges Feria, Yasel"]
[Black "Svane, Rasmus"]
[WhiteFideId "3504921"]
[BlackFideId "4657101"]
[WhiteElo "2439"]
[BlackElo "2623"]
[Result "0-1"]
[Round "09"]
[TimeControl "180+2"]
[Date "2023.01.03"]
[WhiteClock "0:00:09"]
[BlackClock "0:00:03"]

1. e4 {[%clk 0:03:00]}  c6 {[%clk 0:02:59]} 2. Nf3 {[%clk 0:02:57]}  d5 {[%clk 0:03:00]} 3. Nc3 {[%clk 0:02:57]}  dxe4 {[%clk 0:03:00]} 4. Nxe4 {[%clk 0:02:58]}  Nf6 {[%clk 0:03:00]} 5. Nxf6+ {[%clk 0:02:58]}  exf6 {[%clk 0:03:01]} 6. d4 {[%clk 0:02:58]}  Bd6 {[%clk 0:03:02]} 7. Be2 {[%clk 0:02:56]}  O-O {[%clk 0:03:03]} 8. O-O {[%clk 0:02:57]}  Re8 {[%clk 0:03:04]} 9. Re1 {[%clk 0:02:57]}  Nd7 {[%clk 0:03:04]} 10. c3 {[%clk 0:02:57]}  Nf8 {[%clk 0:03:05]} 11. Be3 {[%clk 0:02:56]}  Ng6 {[%clk 0:03:05]} 12. Nd2 {[%clk 0:02:44]}  Qc7 {[%clk 0:03:01]} 13. Nf1 {[%clk 0:02:43]}  Be6 {[%clk 0:02:58]} 14. Bd3 {[%clk 0:02:38]}  Rad8 {[%clk 0:02:58]} 15. Qc2 {[%clk 0:02:37]}  Kh8 {[%clk 0:02:50]} 16. Rad1 {[%clk 0:02:37]}  Qd7 {[%clk 0:02:36]} 17. Ng3 {[%clk 0:02:33]}  b6 {[%clk 0:02:22]} 18. Bc1 {[%clk 0:02:21]}  Bd5 {[%clk 0:02:10]} 19. Be4 {[%clk 0:02:11]}  Bxg3 {[%clk 0:02:01]} 20. hxg3 {[%clk 0:02:10]}  Rxe4 {[%clk 0:01:55]} 21. Rxe4 {[%clk 0:02:11]}  Bxe4 {[%clk 0:01:56]} 22. Qxe4 {[%clk 0:02:10]}  Re8 {[%clk 0:01:57]} 23. Qf3 {[%clk 0:02:10]}  Kg8 {[%clk 0:01:50]} 24. b3 {[%clk 0:01:58]}  Qd5 {[%clk 0:01:12]} 25. Kf1 {[%clk 0:01:35]}  Rd8 {[%clk 0:01:00]} 26. c4 {[%clk 0:01:30]}  Qd6 {[%clk 0:00:59]} 27. Bf4 {[%clk 0:01:25]}  Nxf4 {[%clk 0:00:56]} 28. gxf4 {[%clk 0:01:26]}  f5 {[%clk 0:00:54]} 29. g3 {[%clk 0:01:17]}  b5 {[%clk 0:00:51]} 30. Kg2 {[%clk 0:01:15]}  bxc4 {[%clk 0:00:50]} 31. bxc4 {[%clk 0:01:16]}  h6 {[%clk 0:00:49]} 32. d5 {[%clk 0:01:07]}  c5 {[%clk 0:00:46]} 33. Qd3 {[%clk 0:01:04]}  g6 {[%clk 0:00:43]} 34. Re1 {[%clk 0:01:04]}  Rb8 {[%clk 0:00:39]} 35. Qc3 {[%clk 0:01:03]}  h5 {[%clk 0:00:39]} 36. Qe5 {[%clk 0:00:56]}  Qxe5 {[%clk 0:00:39]} 37. fxe5 {[%clk 0:00:56]}  Rb2 {[%clk 0:00:32]} 38. e6 {[%clk 0:00:56]}  fxe6 {[%clk 0:00:31]} 39. Rxe6 {[%clk 0:00:57]}  Kf7 {[%clk 0:00:20]} 40. Rc6 {[%clk 0:00:54]}  Rxa2 {[%clk 0:00:20]} 41. Rxc5 {[%clk 0:00:54]}  a5 {[%clk 0:00:16]} 42. Rc7+ {[%clk 0:00:55]}  Kf6 {[%clk 0:00:16]} 43. d6 {[%clk 0:00:55]}  Ke6 {[%clk 0:00:17]} 44. c5 {[%clk 0:00:55]}  Rd2 {[%clk 0:00:12]} 45. Rg7 {[%clk 0:00:46]}  a4 {[%clk 0:00:08]} 46. Rxg6+ {[%clk 0:00:42]}  Kd5 {[%clk 0:00:08]} 47. Rg5 {[%clk 0:00:21]}  Kxc5 {[%clk 0:00:08]} 48. Rxf5+ {[%clk 0:00:21]}  Kb4 {[%clk 0:00:08]} 49. Rxh5 {[%clk 0:00:20]}  a3 {[%clk 0:00:07]} 50. Rh8 {[%clk 0:00:19]}  Rxd6 {[%clk 0:00:05]} 51. Ra8 {[%clk 0:00:20]}  Rd5 {[%clk 0:00:04]} 52. g4 {[%clk 0:00:16]}  Ra5 {[%clk 0:00:04]} 53. Rb8+ {[%clk 0:00:16]}  Rb5 {[%clk 0:00:04]} 54. Ra8 {[%clk 0:00:16]}  Ra5 {[%clk 0:00:05]} 55. Rb8+ {[%clk 0:00:17]}  Ka4 {[%clk 0:00:03]} 56. Rb1 {[%clk 0:00:16]}  a2 {[%clk 0:00:03]} 57. Ra1 {[%clk 0:00:17]}  Kb3 {[%clk 0:00:04]} 58. Kg3 {[%clk 0:00:17]}  Kb2 {[%clk 0:00:03]} 59. Rxa2+ {[%clk 0:00:17]}  Rxa2 {[%clk 0:00:04]} 60. g5 {[%clk 0:00:17]}  Kc3 {[%clk 0:00:04]} 61. Kf4 {[%clk 0:00:12]}  Kd4 {[%clk 0:00:04]} 62. f3 {[%clk 0:00:10]}  Kd5 {[%clk 0:00:05]} 63. Kf5 {[%clk 0:00:10]}  Kd6 {[%clk 0:00:05]} 64. f4 {[%clk 0:00:10]}  Ke7 {[%clk 0:00:05]} 65. Kg6 {[%clk 0:00:10]}  Kf8 {[%clk 0:00:04]} 66. f5 {[%clk 0:00:08]}  Ra6+ {[%clk 0:00:04]} 67. f6 {[%clk 0:00:09]}  Kg8 {[%clk 0:00:04]} 68. Kh6 {[%clk 0:00:09]}  Kf7 {[%clk 0:00:03]} 69. Kh7 {[%clk 0:00:09]}  Ra2 {[%clk 0:00:03]} 70. g6+ {[%clk 0:00:10]}  Kxf6 {[%clk 0:00:03]} 71. g7 {[%clk 0:00:08]}  Rh2+ {[%clk 0:00:03]} 72. Kg8 {[%clk 0:00:09]}  Rg2 {[%clk 0:00:03]} 73. Kh8 {[%clk 0:00:09]}  Kf7 {[%clk 0:00:03]} 74. g8=Q+ {[%clk 0:00:09]}  Rxg8+ {[%clk 0:00:03]} 0-1


[Site "https://www.chess.com"]

[Event "Titled Tuesday Blitz January 03 Early 2023"]
[White "Preotu, Razvan"]
[Black "Timofeev, Artyom"]
[WhiteFideId "2613280"]
[BlackFideId "4140419"]
[WhiteElo "2475"]
[BlackElo "2567"]
[Result "0-1"]
[Round "09"]
[TimeControl "180+2"]
[Date "2023.01.03"]
[WhiteClock "0:00:15"]
[BlackClock "0:00:19"]

1. e4 {[%clk 0:03:00]}  c5 {[%clk 0:02:59]} 2. Nf3 {[%clk 0:03:00]}  Nc6 {[%clk 0:02:59]} 3. Bb5 {[%clk 0:02:59]}  d6 {[%clk 0:02:58]} 4. O-O {[%clk 0:02:59]}  Bd7 {[%clk 0:02:58]} 5. Re1 {[%clk 0:03:00]}  a6 {[%clk 0:02:58]} 6. Bf1 {[%clk 0:03:01]}  Bg4 {[%clk 0:02:58]} 7. c3 {[%clk 0:02:56]}  g6 {[%clk 0:02:55]} 8. d4 {[%clk 0:02:53]}  cxd4 {[%clk 0:02:53]} 9. cxd4 {[%clk 0:02:54]}  Bxf3 {[%clk 0:02:53]} 10. gxf3 {[%clk 0:02:54]}  Bg7 {[%clk 0:02:53]} 11. Be3 {[%clk 0:02:55]}  Nf6 {[%clk 0:02:51]} 12. Nc3 {[%clk 0:02:54]}  O-O {[%clk 0:02:51]} 13. f4 {[%clk 0:02:54]}  Rc8 {[%clk 0:02:42]} 14. e5 {[%clk 0:02:54]}  Nd7 {[%clk 0:02:42]} 15. Bh3 {[%clk 0:02:32]}  Na5 {[%clk 0:02:30]} 16. Qf3 {[%clk 0:01:58]}  e6 {[%clk 0:02:19]} 17. Ne4 {[%clk 0:01:58]}  d5 {[%clk 0:01:53]} 18. Nd6 {[%clk 0:01:56]}  Rc7 {[%clk 0:01:53]} 19. b3 {[%clk 0:01:55]}  Nc6 {[%clk 0:01:51]} 20. Rac1 {[%clk 0:01:46]}  Ne7 {[%clk 0:01:40]} 21. Bd2 {[%clk 0:01:17]}  Rxc1 {[%clk 0:01:36]} 22. Rxc1 {[%clk 0:01:18]}  Qb6 {[%clk 0:01:36]} 23. Qd3 {[%clk 0:01:19]}  Nc6 {[%clk 0:01:32]} 24. Be3 {[%clk 0:01:14]}  Rd8 {[%clk 0:01:21]} 25. a3 {[%clk 0:01:03]}  Bf8 {[%clk 0:01:20]} 26. f5 {[%clk 0:00:57]}  exf5 {[%clk 0:01:11]} 27. Bg5 {[%clk 0:00:51]}  f6 {[%clk 0:00:54]} 28. Bxf5 {[%clk 0:00:34]}  Bxd6 {[%clk 0:00:38]} 29. Bxg6 {[%clk 0:00:33]}  Qxd4 {[%clk 0:00:20]} 30. Bxh7+ {[%clk 0:00:27]}  Kf8 {[%clk 0:00:20]} 31. Qg6 {[%clk 0:00:24]}  Qg4+ {[%clk 0:00:19]} 32. Kf1 {[%clk 0:00:16]}  Qxg5 {[%clk 0:00:19]} 33. Qxg5 {[%clk 0:00:15]}  fxg5 {[%clk 0:00:19]} 34. exd6 {[%clk 0:00:15]}  Nde5 {[%clk 0:00:19]} 0-1


[Site "https://www.chess.com"]